fUSD/lending_fUSD_20240712
["ID","MTS","AMOUNT","RATE_DAILY","PERIOD"]
[331767511,1720756253009,-500.0,0.00013843,2]
[331767512,1720756253018,-500.0,0.00013843,2]
[331767513,1720756253027,-1058.67,0.00013843,2]
[331767514,1720756253037,-500.0,0.00013843,2]
[331767515,1720756253049,-500.0,0.00013843,2]
[331767516,1720756253059,-500.0,0.00013843,2]
[331767517,1720756253069,-500.0,0.00013843,2]
[331767518,1720756253080,-500.0,0.00013843,2]
[331767519,1720756253090,-780.25,0.00013843,2]
[331767520,1720756253099,-850.12,0.00013843,2]
[331767521,1720756253110,-500.0,0.00013843,2]
[331767522,1720756253120,-500.0,0.00013843,2]
[331767523,1720756253131,-500.0,0.00013843,2]
[331767524,1720756253140,-500.0,0.00013843,2]
[331767525,1720756253150,-500.0,0.00013843,2]
[331767526,1720756253161,-500.0,0.00013843,2]
[331767527,1720756253171,-677.82,0.00013843,2]
[331767528,1720756253181,-500.0,0.00013843,2]
[331767529,1720756253192,-500.0,0.00013843,2]
[331767530,1720756253201,-232.08045691,0.00013843,2]
[331767531,1720756253212,-500.0,0.00013843,2]
[331767532,1720756253223,-500.0,0.00013843,2]
[331767533,1720756253235,-500.0,0.00013843,2]
[331767534,1720756253244,-500.0,0.00013843,2]
[331767535,1720756253253,-500.0,0.00013843,2]
[331767536,1720756253262,-500.0,0.00013843,2]
[331767537,1720756253271,-500.0,0.00013843,2]
[331767538,1720756253280,-1012.03,0.00013843,2]
[331767539,1720756253289,-500.0,0.00013843,2]
[331767540,1720756253299,-500.0,0.00013843,2]
[331767541,1720756253308,-764.35,0.00013843,2]
[331767542,1720756253318,-500.0,0.00013843,2]
[331767543,1720756253328,-500.0,0.00013843,2]
[331767544,1720756253337,-500.0,0.00013843,2]
[331767545,1720756253348,-500.0,0.00013843,2]
[331767546,1720756253356,-500.0,0.00013843,2]
[331767547,1720756253365,-587.75,0.00013843,2]
[331767548,1720756253374,-833.6,0.00013843,2]
[331767549,1720756253383,-912.48,0.00013843,2]
[331767550,1720756253392,-500.0,0.00013843,2]
[331767551,1720756253401,-500.0,0.00013843,2]
[331767552,1720756253411,-500.0,0.00013843,2]
[331767553,1720756253419,-709.01,0.00013843,2]
[331767554,1720756253429,-545.7,0.00013843,2]
[331767555,1720756253438,-1629.31,0.00013843,2]
[331767556,1720756253447,-605.67,0.00013843,2]
[331767557,1720756253456,-500.0,0.00013843,2]
[331767558,1720756253466,-500.0,0.00013843,2]
[331767559,1720756253478,-500.0,0.00013843,2]
[331767560,1720756253487,-500.0,0.00013843,2]
[331767561,1720756253497,-500.0,0.00013843,2]
[331767562,1720756253506,-662.59,0.00013843,2]
[331767563,1720756253515,-500.0,0.00013843,2]
[331767564,1720756253526,-500.0,0.00013843,2]
[331767565,1720756253541,-1211.45,0.00013843,2]
[331767566,1720756253553,-500.0,0.00013843,2]
[331767567,1720756253563,-500.0,0.00013843,2]
[331767568,1720756253573,-500.0,0.00013843,2]
[331767569,1720756253583,-685.24,0.00013843,2]
[331767570,1720756253593,-537.83,0.00013843,2]
[331767571,1720756253602,-500.0,0.00013843,2]
[331767572,1720756253613,-774.11,0.00013843,2]
[331767573,1720756253623,-500.0,0.00013843,2]
[331767574,1720756253632,-500.0,0.00013843,2]
[331767575,1720756253641,-500.0,0.00013843,2]
[331767576,1720756253651,-500.0,0.00013843,2]
[331767577,1720756253660,-500.0,0.00013843,2]
[331767578,1720756253669,-500.0,0.00013843,2]
[331767579,1720756253678,-500.0,0.00013843,2]
[331767580,1720756253688,-555.43,0.00013843,2]
[331767581,1720756253697,-500.0,0.00013843,2]
[331767582,1720756253707,-1232.03,0.00013843,2]
[331767583,1720756253716,-500.0,0.00013843,2]
[331767584,1720756253727,-630.64,0.00013843,2]
[331767585,1720756253736,-575.29,0.00013843,2]
[331767586,1720756253746,-1629.86,0.00013843,2]
[331767587,1720756253755,-500.0,0.00013843,2]
[331767588,1720756253765,-500.0,0.00013843,2]
[331767589,1720756253774,-861.14,0.00013843,2]
[331767590,1720756253783,-500.0,0.00013843,2]
[331767591,1720756253793,-500.0,0.00013843,2]
[331767592,1720756253803,-500.0,0.00013843,2]
[331767593,1720756253812,-1731.36,0.00013843,2]
[331767594,1720756253821,-500.0,0.00013843,2]
[331767595,1720756253831,-500.0,0.00013843,2]
[331767596,1720756253840,-500.0,0.00013843,2]
[331767597,1720756253851,-500.0,0.00013843,2]
[331767598,1720756253860,-500.0,0.00013843,2]
[331767599,1720756253870,-805.16,0.00013843,2]
[331767600,1720756253879,-500.0,0.00013843,2]
[331767601,1720756253888,-500.0,0.00013843,2]
[331767602,1720756253897,-531.5,0.00013843,2]
[331767603,1720756253907,-1056.07,0.00013843,2]
[331767604,1720756253917,-500.0,0.00013843,2]
[331767605,1720756253927,-2199.01,0.00013843,2]
[331767606,1720756253938,-591.32,0.00013843,2]
[331767607,1720756253948,-544.72,0.00013843,2]
[331767608,1720756253957,-995.27,0.00013843,2]
[331767609,1720756253966,-879.83,0.00013843,2]
[331767610,1720756253975,-7045.45,0.00013843,2]
[331767611,1720756253987,-500.0,0.00013843,2]
[331767612,1720756254000,-2850.07,0.00013843,2]
[331767613,1720756254009,-500.0,0.00013843,2]
[331767614,1720756254018,-500.0,0.00013843,2]
[331767615,1720756254027,-562.42,0.00013843,2]
[331767616,1720756254036,-500.0,0.00013843,2]
[331767617,1720756254046,-500.0,0.00013843,2]
[331767618,1720756254055,-567.24,0.00013843,2]
[331767619,1720756254064,-500.0,0.00013843,2]
[331767620,1720756254074,-2022.05,0.00013843,2]
[331767621,1720756254083,-502.15,0.00013843,2]
[331767622,1720756254092,-500.0,0.00013843,2]
[331767623,1720756254101,-500.0,0.00013843,2]
[331767624,1720756254110,-500.0,0.00013843,2]
[331767625,1720756254120,-500.0,0.00013843,2]
[331767626,1720756254129,-500.0,0.00013843,2]
[331767627,1720756254141,-536.57,0.00013843,2]
[331767628,1720756254152,-1019.77,0.00013843,2]
[331767629,1720756254163,-500.0,0.00013843,2]
[331767630,1720756254174,-554.94,0.00013843,2]
[331767631,1720756254185,-500.0,0.00013843,2]
[331767632,1720756254194,-500.0,0.00013843,2]
[331767633,1720756254205,-500.0,0.00013843,2]
[331767634,1720756254215,-619.54281806,0.00013843,2]
[331767635,1720756254227,-500.0,0.00013844,2]
[331767636,1720756254236,-500.0,0.00013844,2]
[331767637,1720756254245,-500.0,0.00013844,2]
[331767638,1720756254255,-972.34,0.00013844,2]
[331767639,1720756254265,-500.0,0.00013844,2]
[331767640,1720756254276,-500.84,0.00013844,2]
[331767641,1720756254286,-806.59,0.00013844,2]
[331767642,1720756254296,-525.26,0.00013844,2]
[331767643,1720756254306,-500.0,0.00013844,2]
[331767644,1720756254315,-500.0,0.00013844,2]
[331767645,1720756254324,-500.0,0.00013844,2]
[331767646,1720756254334,-500.0,0.00013844,2]
[331767647,1720756254343,-500.0,0.00013844,2]
[331767648,1720756254353,-500.0,0.00013844,2]
[331767649,1720756254363,-409.3,0.00013844,2]
[331767650,1720756254373,-500.0,0.00013844,2]
[331767651,1720756254383,-500.0,0.00013844,2]
[331767652,1720756254393,-500.0,0.00013844,2]
[331767653,1720756254402,-500.0,0.00013844,2]
[331767654,1720756254411,-500.0,0.00013844,2]
[331767655,1720756254420,-320.58,0.00013844,2]
[331767656,1720756254429,-500.0,0.00013844,2]
[331767657,1720756254438,-500.0,0.00013844,2]
[331767658,1720756254447,-541.24,0.00013844,2]
[331767659,1720756254458,-853.18,0.00013844,2]
[331767660,1720756254470,-500.0,0.00013844,2]
[331767661,1720756254481,-500.0,0.00013844,2]
[331767662,1720756254490,-500.0,0.00013844,2]
[331767663,1720756254500,-500.0,0.00013844,2]
[331767664,1720756254511,-500.0,0.00013844,2]
[331767665,1720756254521,-500.0,0.00013844,2]
[331767666,1720756254531,-500.0,0.00013844,2]
[331767667,1720756254541,-500.0,0.00013844,2]
[331767668,1720756254551,-500.0,0.00013844,2]
[331767669,1720756254561,-500.0,0.00013844,2]
[331767670,1720756254570,-637.08,0.00013844,2]
[331767671,1720756254580,-500.0,0.00013844,2]
[331767672,1720756254590,-488.6,0.00013844,2]
[331767673,1720756254600,-529.37,0.00013844,2]
[331767674,1720756254613,-500.0,0.00013844,2]
[331767675,1720756254623,-500.0,0.00013844,2]
[331767676,1720756254632,-500.0,0.00013844,2]
[331767677,1720756254642,-500.0,0.00013844,2]
[331767678,1720756254652,-500.0,0.00013844,2]
[331767679,1720756254662,-500.0,0.00013844,2]
[331767680,1720756254671,-655.21,0.00013844,2]
[331767681,1720756254680,-500.0,0.00013844,2]
[331767682,1720756254689,-500.0,0.00013844,2]
[331767683,1720756254699,-500.0,0.00013844,2]
[331767684,1720756254710,-500.0,0.00013844,2]
[331767685,1720756254721,-500.0,0.00013844,2]
[331767686,1720756254731,-500.0,0.00013844,2]
[331767687,1720756254740,-271.80490116,0.00013844,2]
[331767688,1720756254749,-500.0,0.00013844,2]
[331767689,1720756254758,-500.0,0.00013844,2]
[331767690,1720756254768,-500.0,0.00013844,2]
[331767691,1720756254778,-500.0,0.00013844,2]
[331767692,1720756254788,-802.61,0.00013844,2]
[331767693,1720756254797,-500.0,0.00013844,2]
[331767694,1720756254807,-500.0,0.00013844,2]
[331767695,1720756254816,-500.0,0.00013844,2]
[331767696,1720756254826,-500.0,0.00013844,2]
[331767697,1720756254835,-616.21,0.00013844,2]
[331767698,1720756254844,-655.3,0.00013844,2]
[331767699,1720756254853,-521.8,0.00013844,2]
[331767700,1720756254863,-500.0,0.00013844,2]
[331767701,1720756254872,-500.0,0.00013844,2]
[331767702,1720756254881,-500.0,0.00013844,2]
[331767703,1720756254890,-970.2,0.00013844,2]
[331767704,1720756254899,-500.0,0.00013844,2]
[331767705,1720756254908,-500.0,0.00013844,2]
[331767706,1720756254918,-500.0,0.00013844,2]
[331767707,1720756254927,-871.15,0.00013844,2]
[331767708,1720756254936,-589.27,0.00013844,2]
[331767709,1720756254945,-500.0,0.00013844,2]
[331767710,1720756254956,-500.0,0.00013844,2]
[331767711,1720756254965,-500.0,0.00013844,2]
[331767712,1720756254975,-500.0,0.00013844,2]
[331767713,1720756254990,-611.16,0.00013844,2]
[331767714,1720756254999,-500.0,0.00013844,2]
[331767715,1720756255009,-500.0,0.00013844,2]
[331767716,1720756255018,-500.0,0.00013844,2]
[331767717,1720756255027,-1354.62,0.00013844,2]
[331767718,1720756255037,-500.0,0.00013844,2]
[331767719,1720756255046,-500.0,0.00013844,2]
[331767720,1720756255055,-444.03173282,0.00013844,2]
[331767721,1720756255064,-500.0,0.00013844,2]
[331767722,1720756255076,-647.56,0.00013844,2]
[331767723,1720756255087,-500.0,0.00013844,2]
[331767724,1720756255097,-661.71,0.00013844,2]
[331767725,1720756255107,-500.0,0.00013844,2]
[331767726,1720756255117,-500.0,0.00013844,2]
[331767727,1720756255127,-555.31,0.00013844,2]
[331767728,1720756255136,-500.0,0.00013844,2]
[331767729,1720756255145,-500.0,0.00013844,2]
[331767730,1720756255154,-500.0,0.00013844,2]
[331767731,1720756255163,-500.0,0.00013844,2]
[331767732,1720756255172,-500.0,0.00013844,2]
[331767733,1720756255182,-382.4853052,0.00013844,2]
[331767734,1720756255706,-264.1546948,0.00013844,2]
[331767735,1720756255716,-147.8453052,0.00013844,2]
[331767736,1720756255798,-352.1546948,0.00013844,2]
[331767737,1720756255808,-500.0,0.00013844,2]
[331767738,1720756255818,-502.45,0.00013844,2]
[331767739,1720756255827,-105.72170496,0.00013844,2]
[331767740,1720756256072,-219.79581803,0.00013128,2]
[331767741,1720756256082,-458.54829504,0.00013844,2]
[331767742,1720756256094,-588.92,0.00013844,2]
[331767743,1720756256103,-500.0,0.00013844,2]
[331767744,1720756256113,-623.81,0.00013844,2]
[331767745,1720756256123,-1208.16,0.00013844,2]
[331767746,1720756256133,-776.86,0.00013844,2]
[331767747,1720756256142,-581.53,0.00013844,2]
[331767748,1720756256152,-202.64,0.00013844,2]
[331767749,1720756256162,-500.0,0.00013844,2]
[331767750,1720756256172,-821.39,0.00013844,2]
[331767751,1720756256184,-547.72,0.00013844,2]
[331767752,1720756256194,-620.02426927,0.00013844,2]
[331767753,1720756256206,-500.0,0.00013844,2]
[331767754,1720756256216,-500.0,0.00013844,2]
[331767755,1720756256226,-500.0,0.00013844,2]
[331767756,1720756256237,-1572.34,0.00013844,2]
[331767757,1720756256246,-500.0,0.00013844,2]
[331767758,1720756256255,-500.0,0.00013844,2]
[331767759,1720756256265,-603.97342272,0.00013844,2]
[331767760,1720756256275,-500.0,0.00013844,2]
[331767761,1720756256285,-268.4,0.00013844,2]
[331767762,1720756256294,-1279.68,0.00013844,2]
[331767763,1720756256305,-671.54,0.00013844,2]
[331767764,1720756256314,-59.80912678,0.00013844,2]
[331767765,1720756256327,-571.83087322,0.00013844,2]
[331767766,1720756256337,-178.36,0.00013844,2]
[331767767,1720756256346,-500.0,0.00013844,2]
[331767768,1720756256356,-774.71,0.00013844,2]
[331767769,1720756256365,-921.66,0.00013844,2]
[331767770,1720756256375,-500.0,0.00013844,2]
[331767771,1720756256385,-500.0,0.00013844,2]
[331767772,1720756256394,-587.15,0.00013844,2]
[331767773,1720756256404,-438.6604132,0.00013844,2]
[331767774,1720756256414,-500.0,0.00013844,2]
[331767775,1720756256424,-1219.82,0.00013844,2]
[331767776,1720756256434,-665.23,0.00013844,2]
[331767777,1720756256443,-500.0,0.00013844,2]
[331767778,1720756256453,-500.0,0.00013844,2]
[331767779,1720756256463,-500.0,0.00013844,2]
[331767780,1720756256473,-500.0,0.00013844,2]
[331767781,1720756256484,-952.25,0.00013844,2]
[331767782,1720756256494,-500.0,0.00013844,2]
[331767783,1720756256503,-500.0,0.00013844,2]
[331767784,1720756256513,-747.14,0.00013844,2]
[331767785,1720756256524,-500.0,0.00013844,2]
[331767786,1720756256536,-500.0,0.00013844,2]
[331767787,1720756256546,-500.0,0.00013844,2]
[331767788,1720756256557,-500.0,0.00013844,2]
[331767789,1720756256566,-1014.39,0.00013844,2]
[331767790,1720756256578,-500.0,0.00013844,2]
[331767791,1720756256587,-500.0,0.00013844,2]
[331767792,1720756256599,-625.3,0.00013844,2]
[331767793,1720756256609,-500.0,0.00013844,2]
[331767794,1720756256619,-500.0,0.00013844,2]
[331767795,1720756256628,-500.0,0.00013844,2]
[331767796,1720756256638,-500.0,0.00013844,2]
[331767797,1720756256647,-790.61,0.00013844,2]
[331767798,1720756256658,-500.0,0.00013844,2]
[331767799,1720756256668,-500.0,0.00013844,2]
[331767800,1720756256678,-500.0,0.00013844,2]
[331767801,1720756256688,-500.0,0.00013844,2]
[331767802,1720756256699,-859.55,0.00013844,2]
[331767803,1720756256709,-500.0,0.00013844,2]
[331767804,1720756256719,-500.0,0.00013844,2]
[331767805,1720756256729,-500.0,0.00013844,2]
[331767806,1720756256739,-500.0,0.00013844,2]
[331767807,1720756256748,-784.77,0.00013844,2]
[331767808,1720756256758,-734.81,0.00013844,2]
[331767809,1720756256768,-281.37,0.00013844,2]
[331767810,1720756256778,-500.0,0.00013844,2]
[331767811,1720756256787,-500.0,0.00013844,2]
[331767812,1720756256797,-500.0,0.00013844,2]
[331767813,1720756256807,-500.0,0.00013844,2]
[331767814,1720756256817,-735.75,0.00013844,2]
[331767815,1720756256827,-500.0,0.00013844,2]
[331767816,1720756256836,-500.0,0.00013844,2]
[331767817,1720756256847,-809.5,0.00013844,2]
[331767818,1720756256856,-500.0,0.00013844,2]
[331767819,1720756256866,-500.0,0.00013844,2]
[331767820,1720756256876,-500.0,0.00013844,2]
[331767821,1720756256886,-500.0,0.00013844,2]
[331767822,1720756256896,-500.0,0.00013844,2]
[331767823,1720756256906,-500.0,0.00013844,2]
[331767824,1720756256915,-773.17,0.00013844,2]
[331767825,1720756256925,-500.0,0.00013844,2]
[331767826,1720756256934,-500.0,0.00013844,2]
[331767827,1720756256944,-500.0,0.00013844,2]
[331767828,1720756256954,-930.97,0.00013844,2]
[331767829,1720756256964,-500.0,0.00013844,2]
[331767830,1720756256974,-500.0,0.00013844,2]
[331767831,1720756256985,-500.0,0.00013844,2]
[331767832,1720756256995,-1153.01,0.00013844,2]
[331767833,1720756257005,-500.0,0.00013844,2]
[331767834,1720756257016,-500.0,0.00013844,2]
[331767835,1720756257025,-755.77,0.00013844,2]
[331767836,1720756257036,-278.86,0.00013844,2]
[331767837,1720756257046,-500.0,0.00013844,2]
[331767838,1720756257056,-734.44,0.00013844,2]
[331767839,1720756257065,-500.0,0.00013844,2]
[331767840,1720756257075,-1773.15,0.00013844,2]
[331767841,1720756257084,-500.0,0.00013844,2]
[331767842,1720756257094,-614.49,0.00013844,2]
[331767843,1720756257104,-500.0,0.00013844,2]
[331767844,1720756257113,-143.22189666,0.00013844,2]
[331767845,1720756257127,-535.50810334,0.00013844,2]
[331767846,1720756257136,-3.94394505,0.00013844,2]
[331767847,1720756258969,-271.35184603,0.00012302,2]
[331767848,1720756258980,-181.34882581,0.00012314,2]
[331767849,1720756258991,-227.32181018,0.00013516,2]
[331767850,1720756259001,-306.12628443,0.00013689,2]
[331767851,1720756259016,-16.2101613,0.00013689,2]
[331767852,1720756259026,-496.05605495,0.00013844,2]
[331767853,1720756259035,-574.72923508,0.00013844,2]
[331767854,1720756259669,-30.88076492,0.00013844,2]
[331767855,1720756259680,-500.0,0.00013844,2]
[331767856,1720756259691,-1115.26,0.00013844,2]
[331767857,1720756259702,-500.0,0.00013844,2]
[331767858,1720756259713,-500.0,0.00013844,2]
[331767859,1720756259723,-500.0,0.00013844,2]
[331767860,1720756259736,-514.32,0.00013844,2]
[331767861,1720756259748,-500.0,0.00013844,2]
[331767862,1720756259758,-500.0,0.00013844,2]
[331767863,1720756259769,-447.47960069,0.00013844,2]
[331767864,1720756259778,-500.0,0.00013844,2]
[331767865,1720756259789,-500.0,0.00013844,2]
[331767866,1720756259799,-500.0,0.00013844,2]
[331767867,1720756259808,-599.85,0.00013844,2]
[331767868,1720756259818,-500.0,0.00013844,2]
[331767869,1720756259829,-500.0,0.00013844,2]
[331767870,1720756259840,-500.0,0.00013844,2]
[331767871,1720756259849,-500.0,0.00013844,2]
[331767872,1720756259859,-1145.69,0.00013844,2]
[331767873,1720756259869,-348.79816332,0.00013844,2]
[331767874,1720756260019,-151.20183668,0.00013844,2]
[331767875,1720756260029,-500.0,0.00013844,2]
[331767876,1720756260038,-188.79,0.00013844,2]
[331767877,1720756260048,-500.0,0.00013844,2]
[331767878,1720756260058,-500.0,0.00013844,2]
[331767879,1720756260068,-500.0,0.00013844,2]
[331767880,1720756260078,-644.75,0.00013844,2]
[331767881,1720756260087,-500.0,0.00013844,2]
[331767882,1720756260096,-500.0,0.00013844,2]
[331767883,1720756260106,-500.0,0.00013844,2]
[331767884,1720756260115,-500.0,0.00013844,2]
[331767885,1720756260124,-510.83,0.00013844,2]
[331767886,1720756260133,-500.0,0.00013844,2]
[331767887,1720756260142,-500.0,0.00013844,2]
[331767888,1720756260152,-585.54,0.00013844,2]
[331767889,1720756260161,-623.97,0.00013844,2]
[331767890,1720756260170,-500.0,0.00013844,2]
[331767891,1720756260180,-500.0,0.00013844,2]
[331767892,1720756260189,-500.0,0.00013844,2]
[331767893,1720756260198,-500.0,0.00013844,2]
[331767894,1720756260207,-500.0,0.00013844,2]
[331767895,1720756260217,-500.0,0.00013844,2]
[331767896,1720756260226,-648.76,0.00013844,2]
[331767897,1720756260238,-500.0,0.00013844,2]
[331767898,1720756260248,-500.0,0.00013844,2]
[331767899,1720756260258,-500.0,0.00013844,2]
[331767900,1720756260267,-500.0,0.00013844,2]
[331767901,1720756260276,-500.0,0.00013844,2]
[331767902,1720756260285,-500.0,0.00013844,2]
[331767903,1720756260294,-500.0,0.00013844,2]
[331767904,1720756260304,-500.0,0.00013844,2]
[331767905,1720756260313,-500.0,0.00013844,2]
[331767906,1720756260322,-500.0,0.00013844,2]
[331767907,1720756260331,-1221.84,0.00013844,2]
[331767908,1720756260340,-500.0,0.00013844,2]
[331767909,1720756260350,-500.0,0.00013844,2]
[331767910,1720756260359,-852.74,0.00013844,2]
[331767911,1720756260370,-500.0,0.00013844,2]
[331767912,1720756260379,-500.0,0.00013844,2]
[331767913,1720756260388,-500.0,0.00013844,2]
[331767914,1720756260397,-500.0,0.00013844,2]
[331767915,1720756260407,-500.0,0.00013844,2]
[331767916,1720756260418,-500.0,0.00013844,2]
[331767917,1720756260428,-500.0,0.00013844,2]
[331767918,1720756260437,-500.0,0.00013844,2]
[331767919,1720756260447,-586.75,0.00013844,2]
[331767920,1720756260456,-530.88,0.00013844,2]
[331767921,1720756260465,-500.0,0.00013844,2]
[331767922,1720756260475,-500.0,0.00013844,2]
[331767923,1720756260487,-500.0,0.00013844,2]
[331767924,1720756260496,-500.0,0.00013844,2]
[331767925,1720756260506,-500.0,0.00013844,2]
[331767926,1720756260515,-500.0,0.00013844,2]
[331767927,1720756260525,-500.0,0.00013844,2]
[331767928,1720756260541,-500.0,0.00013844,2]
[331767929,1720756260550,-500.0,0.00013844,2]
[331767930,1720756260559,-942.23,0.00013844,2]
[331767931,1720756260569,-500.0,0.00013844,2]
[331767932,1720756260579,-500.0,0.00013844,2]
[331767933,1720756260588,-500.0,0.00013844,2]
[331767934,1720756260597,-812.68,0.00013844,2]
[331767935,1720756260606,-500.0,0.00013844,2]
[331767936,1720756260617,-506.01,0.00013844,2]
[331767937,1720756260628,-577.93,0.00013844,2]
[331767938,1720756260637,-500.0,0.00013844,2]
[331767939,1720756260647,-500.0,0.00013844,2]
[331767940,1720756260657,-500.0,0.00013844,2]
[331767941,1720756260666,-47.50928413,0.00013844,2]
[331767942,1720756260679,-452.49071587,0.00013844,2]
[331767943,1720756260689,-500.0,0.00013844,2]
[331767944,1720756260698,-215.50054497,0.00013844,2]
[331767945,1720756260710,-284.49945503,0.00013844,2]
[331767946,1720756260719,-25.57707927,0.00013844,2]
[331767947,1720756260730,-507.39292073,0.00013844,2]
[331767948,1720756260744,-809.77,0.00013844,2]
[331767949,1720756260754,-500.0,0.00013844,2]
[331767950,1720756260763,-1019.91,0.00013844,2]
[331767951,1720756260773,-665.54,0.00013844,2]
[331767952,1720756260782,-75.18707927,0.00013844,2]
[331767953,1720756260807,-99.39292073,0.00013844,2]
[331767954,1720756260816,-205.60707927,0.00013844,2]
[331767955,1720756260837,-513.87292073,0.00013844,2]
[331767956,1720756260846,-500.0,0.00013844,2]
[331767957,1720756260856,-500.0,0.00013844,2]
[331767958,1720756260865,-500.0,0.00013844,2]
[331767959,1720756260875,-500.0,0.00013844,2]
[331767960,1720756260884,-500.0,0.00013844,2]
[331767961,1720756260894,-500.0,0.00013844,2]
[331767962,1720756260905,-632.37,0.00013844,2]
[331767963,1720756260915,-583.71,0.00013844,2]
[331767964,1720756260926,-500.0,0.00013844,2]
[331767965,1720756260935,-500.0,0.00013844,2]
[331767966,1720756260945,-500.0,0.00013844,2]
[331767967,1720756260955,-500.0,0.00013844,2]
[331767968,1720756260965,-1281.87,0.00013844,2]
[331767969,1720756260975,-500.0,0.00013844,2]
[331767970,1720756260988,-702.06,0.00013844,2]
[331767971,1720756260997,-500.0,0.00013844,2]
[331767972,1720756261007,-642.25,0.00013844,2]
[331767973,1720756261016,-1026.28,0.00013844,2]
[331767974,1720756261026,-500.0,0.00013844,2]
[331767975,1720756261035,-577.99,0.00013844,2]
[331767976,1720756261044,-566.96,0.00013844,2]
[331767977,1720756261054,-2823.76,0.00013844,2]
[331767978,1720756261063,-500.0,0.00013844,2]
[331767979,1720756261072,-500.0,0.00013844,2]
[331767980,1720756261081,-500.0,0.00013844,2]
[331767981,1720756261091,-500.0,0.00013844,2]
[331767982,1720756261100,-500.0,0.00013844,2]
[331767983,1720756261109,-500.0,0.00013844,2]
[331767984,1720756261119,-500.0,0.00013844,2]
[331767985,1720756261128,-500.0,0.00013844,2]
[331767986,1720756261137,-878.93,0.00013844,2]
[331767987,1720756261146,-500.0,0.00013844,2]
[331767988,1720756261155,-528.85,0.00013844,2]
[331767989,1720756261164,-629.49,0.00013844,2]
[331767990,1720756261174,-500.0,0.00013844,2]
[331767991,1720756261183,-500.0,0.00013844,2]
[331767992,1720756261192,-500.0,0.00013844,2]
[331767993,1720756261201,-500.0,0.00013844,2]
[331767994,1720756261210,-500.0,0.00013844,2]
[331767995,1720756261220,-500.0,0.00013844,2]
[331767996,1720756261229,-500.0,0.00013844,2]
[331767997,1720756261242,-500.0,0.00013844,2]
[331767998,1720756261251,-500.0,0.00013844,2]
[331767999,1720756261261,-1568.17,0.00013844,2]
[331768000,1720756261271,-604.46,0.00013844,2]
[331768001,1720756261280,-500.0,0.00013844,2]
[331768002,1720756261290,-500.0,0.00013844,2]
[331768003,1720756261299,-500.0,0.00013844,2]
[331768004,1720756261309,-500.0,0.00013844,2]
[331768005,1720756261319,-500.0,0.00013844,2]
[331768006,1720756261329,-714.02,0.00013844,2]
[331768007,1720756261338,-523.29,0.00013844,2]
[331768008,1720756261347,-986.34,0.00013844,2]
[331768009,1720756261356,-1236.07,0.00013844,2]
[331768010,1720756261365,-1292.48,0.00013844,2]